Workbook

Sheet Welcome
A1: Welcome to the Student-Level Trajectory Report Generator for ACCESS 2.0 This analysis tool allows you to explore the scale score growth needed for students to be "on track" for future English language proficiency on the ACCESS 2.0 assessment. The EL trajectory target for students in Idaho is reaching proficiency in seven years. School performance on this measure will be included on the Idaho Report Card. You can run these analyses for an individual student or for multiple students using the template provided. Follow the steps below to produce your trajectory report.
A2: 1) Input Student Data
A3: 2) Run Report
A4: Interested in exploring EL proficiency targets without creating a full student trajectory report? Use the Lookup Tool available in the Lookup Tool spreadsheet.
A5: NOTES: Estimates are for informational purposes only and are intended to help illustrate the basic framework of the ACCESS 2.0 trajectory calculation. The calculations in this tool are a not a substitute for the trajectory calculations in Idaho's school accountability system. Please be aware that some high-achieving students may already have achieved a summative scale score above the target scale score for proficiency three years in the future. This tool will set their target growth at zero. The full business rules document, to be posted on the Idaho State Department of Education website, will include specifics on the official trajectory calculations.
A6: End of worksheet

Sheet Enter Student Data
A1: This sheet contains five columns where you need to enter ACCESS 2.0 composite scale scores to create an English Learner trajectory estimate. By default, there is sample entry in row 3 that you can replace. When complete, click the "Done" button or click on the "Welcome" spreadsheet. Note this tool does not create figures for separate domains.
A2: EDUID | B2: School | C2: First Name | D2: Last Name | E2: Last Year's Scale Score | F2: Current Grade
A3: 1000000 | B3: Sample School | C3: Test | D3: Student | E3: 100 | F3: 8

Sheet Lookup Tool
A1: This lookup tool allows you to enter different options for ACCESS 2.0 trajectory targets
A2: Lookup Tool
A3: The two variables listed in the rows below allow you to generate trajectory targets | B3: Enter the information in this row to explore different trajectory targets | C3: Target Column
A4: Current Grade ---> | B4: Select a grade | C4: J
A5: Last year's (i.e. 2017) Overall scale score ---> | B5: 100 | C5: Years Left
B6: Reaching Proficiency in Seven Years or by the End of 12th Grade (whichever is closer)
A7: Target Overall scale score | B7: =C14 ->  | C7: =IF(B4=7,6,IF(B4=8,5,IF(B4=9,4,IF(B4=10,3,IF(B4=11,2,IF(B4=12,1,7)))))) -> 7 | D7: =SUM(B4+2) -> 
A8: Total scale score growth needed to reach standard | B8: =MAX(C14-B5, 0) ->  | C8: Target Row
A9: Annual scale score growth needed (rounded up) | B9: =C16 -> 
C10: =SUM(C7+B4+3) -> 
C11: Target Sheet
C12: ="'--Full Score Bands--'!" -> '--Full Score Bands--'!
C13: Target Score
C14: =INDIRECT(C12 & C4 & C10) -> 
C15: Annual growth rounded up
C16: =MAX(0, ROUNDUP((C14-B5) / C7, 0), 0) -> 
C18: =IF(B4 = "ELA/Literacy", "D", "I") -> I
C19: =IF(B4 = "ELA/Literacy", "B", "K") -> K
C22: Column ---> | D22: B | E22: C | F22: E | G22: G | H22: I | I22: K | J22: M
B23: Year | C23: Scale Score | D23: Minimum | E23: Level 1 | F23: Level 2 | G23: Level 3 | H23: Level 4 | I23: Level 5 | J23: Level 6
A24: Years | B24: 2017 | C24: =B5 -> 100
A25: 1 | B25: 2018 | C25: =IF($C$7 >= A25, SUM(C24+$B$9), 0) ->  | D25: =INDIRECT($C$12 & D$22 & SUM($D$7+$A25)) ->  | E25: =INDIRECT($C$12 & E$22 & SUM($D$7+$A25))-D25 ->  | F25: =INDIRECT($C$12 & F$22 & SUM($D$7+$A25))-$D25-$E25 ->  | G25: =INDIRECT($C$12 & G$22 & SUM($D$7+$A25))-$D25-$E25-$F25 ->  | H25: =INDIRECT($C$12 & H$22 & SUM($D$7+$A25))-$D25-$E25-$F25-$G25 ->  | I25: =INDIRECT($C$12 & I$22 & SUM($D$7+$A25))-$D25-$E25-$F25-$G25-$H25 ->  | J25: =INDIRECT($C$12 & J$22 & SUM($D$7+$A25))-$D25-$E25-$F25-$G25-$H25-$I25 ->  | K25: =SUM($B$5+A25-1) -> 100
A26: 2 | B26: 2019 | D26: =INDIRECT($C$12 & D$22 & SUM($D$7+$A26)) ->  | E26: =INDIRECT($C$12 & E$22 & SUM($D$7+$A26))-D26 ->  | F26: =INDIRECT($C$12 & F$22 & SUM($D$7+$A26))-$D26-$E26 ->  | G26: =INDIRECT($C$12 & G$22 & SUM($D$7+$A26))-$D26-$E26-$F26 ->  | H26: =INDIRECT($C$12 & H$22 & SUM($D$7+$A26))-$D26-$E26-$F26-$G26 ->  | I26: =INDIRECT($C$12 & I$22 & SUM($D$7+$A26))-$D26-$E26-$F26-$G26-$H26 ->  | J26: =INDIRECT($C$12 & J$22 & SUM($D$7+$A26))-$D26-$E26-$F26-$G26-$H26-$I26 ->  | K26: 101
A27: 3 | B27: 2020 | K27: 102
A28: 4 | B28: 2021 | K28: 103
A29: 5 | B29: 2022 | E29: =INDIRECT($C$12 & E$22 & SUM($D$7+$A29))-D29 ->  | K29: 104
A30: 6 | B30: 2023 | K30: 105
A31: 7 | B31: 2024 | E31: =INDIRECT($C$12 & E$22 & SUM($D$7+$A31))-D31 ->  | K31: 106

Sheet --Cut Scores-- (hidden)
A1: ELA Cut Scores | F1: Math Cut Scores
A2: Grade | B2: Level 1 | C2: Level 2 | D2: Level 3 | E2: Level 4 | F2: Grade | G2: Level 1 | H2: Level 2 | I2: Level 3 | J2: Level 4
B3: From | C3: From | D3: From | E3: From | G3: From | H3: From | I3: From | J3: From
A4: 3 | B4: 2001 | C4: 2367 | D4: 2432 | E4: 2490 | F4: 3 | G4: 2071 | H4: 2381 | I4: 2436 | J4: 2501
A5: 4 | B5: 2032 | C5: 2416 | D5: 2473 | E5: 2533 | F5: 4 | G5: 2090 | H5: 2411 | I5: 2485 | J5: 2549
A6: 5 | B6: 2056 | C6: 2442 | D6: 2502 | E6: 2582 | F6: 5 | G6: 2095 | H6: 2455 | I6: 2528 | J6: 2579
A7: 6 | B7: 2079 | C7: 2457 | D7: 2531 | E7: 2618 | F7: 6 | G7: 2103 | H7: 2473 | I7: 2552 | J7: 2610
A8: 7 | B8: 2082 | C8: 2479 | D8: 2552 | E8: 2649 | F8: 7 | G8: 2108 | H8: 2484 | I8: 2567 | J8: 2635
A9: 8 | B9: 2097 | C9: 2487 | D9: 2567 | E9: 2668 | F9: 8 | G9: 2113 | H9: 2504 | I9: 2586 | J9: 2653
A10: 9 | B10: 2102 | C10: 2488 | D10: 2571 | E10: 2670 | F10: 9 | G10: 2118 | H10: 2515 | I10: 2599 | J10: 2676
A11: 10 | B11: 2102 | C11: 2491 | D11: 2577 | E11: 2677 | F11: 10 | G11: 2118 | H11: 2529 | I11: 2614 | J11: 2697
A12: 11 | B12: 2102 | C12: 2493 | D12: 2583 | E12: 2682 | F12: 11 | G12: 2118 | H12: 2543 | I12: 2628 | J12: 2718
A14: Source: http://idaho.portal.airast.org/wp-content/uploads/ELA-and-Math-Cut-Scores.pdf

Sheet --Full Score Bands-- (hidden)
A1: ACCESS 2.0 Overall Cut Scores
A2: Grade | B2: Level 1 | D2: Level 2 | F2: Level 3 | H2: Level 4 | J2: Level 5 | L2: Level 6
B3: From | C3: To | D3: From | E3: To | F3: From | G3: To | H3: From | I3: To | J3: From | K3: To | L3: From | M3: To
A4: 0 | B4: 100 | C4: =SUM(D4-1) -> 228 | D4: 229 | E4: =SUM(F4-1) -> 260 | F4: 261 | G4: =SUM(H4-1) -> 292 | H4: 293 | I4: =SUM(J4-1) -> 324 | J4: 325 | K4: =SUM(L4-1) -> 349 | L4: 350 | M4: 600
A5: 1 | B5: 100 | C5: =SUM(D5-1) -> 241 | D5: 242 | E5: 273 | F5: 274 | G5: =SUM(H5-1) -> 314 | H5: 315 | I5: =SUM(J5-1) -> 343 | J5: 344 | K5: =SUM(L5-1) -> 367 | L5: 368 | M5: 600
A6: 2 | B6: 100 | C6: 253 | D6: 254 | E6: 288 | F6: 289 | G6: =SUM(H6-1) -> 328 | H6: 329 | I6: =SUM(J6-1) -> 358 | J6: 359 | K6: =SUM(L6-1) -> 382 | L6: 383 | M6: 600
A7: 3 | B7: 100 | C7: 264 | D7: 265 | E7: 299 | F7: 300 | G7: =SUM(H7-1) -> 339 | H7: 340 | I7: =SUM(J7-1) -> 370 | J7: 371 | K7: =SUM(L7-1) -> 395 | L7: 396 | M7: 600
A8: 4 | B8: 100 | C8: 278 | D8: 279 | E8: 308 | F8: 309 | G8: =SUM(H8-1) -> 349 | H8: 350 | I8: =SUM(J8-1) -> 381 | J8: 382 | K8: =SUM(L8-1) -> 405 | L8: 406 | M8: 600
A9: 5 | B9: 100 | C9: 285 | D9: 286 | E9: 316 | F9: 317 | G9: =SUM(H9-1) -> 357 | H9: 358 | I9: =SUM(J9-1) -> 389 | J9: 390 | K9: =SUM(L9-1) -> 414 | L9: 415 | M9: 600
A10: 6 | B10: 100 | C10: 290 | D10: 291 | E10: 323 | F10: 324 | G10: =SUM(H10-1) -> 364 | H10: 365 | I10: =SUM(J10-1) -> 398 | J10: 399 | K10: =SUM(L10-1) -> 422 | L10: 423 | M10: 600
A11: 7 | B11: 100 | C11: 297 | D11: 298 | E11: 330 | F11: 331 | G11: =SUM(H11-1) -> 371 | H11: 372 | I11: =SUM(J11-1) -> 405 | J11: 406 | K11: =SUM(L11-1) -> 430 | L11: 431 | M11: 600
A12: 8 | B12: 100 | C12: 303 | D12: 304 | E12: 336 | F12: 337 | G12: =SUM(H12-1) -> 377 | H12: 378 | I12: =SUM(J12-1) -> 411 | J12: 412 | K12: =SUM(L12-1) -> 437 | L12: 438 | M12: 600
A13: 9 | B13: 100 | C13: 310 | D13: 311 | E13: 343 | F13: 344 | G13: =SUM(H13-1) -> 384 | H13: 385 | I13: =SUM(J13-1) -> 417 | J13: 418 | K13: =SUM(L13-1) -> 445 | L13: 446 | M13: 600
A14: 10 | B14: 100 | C14: 317 | D14: 318 | E14: 349 | F14: 350 | G14: =SUM(H14-1) -> 390 | H14: 391 | I14: =SUM(J14-1) -> 423 | J14: 424 | K14: =SUM(L14-1) -> 452 | L14: 453 | M14: 600
A15: 11 | B15: 100 | C15: 324 | D15: 325 | E15: 355 | F15: 356 | G15: =SUM(H15-1) -> 396 | H15: 397 | I15: =SUM(J15-1) -> 428 | J15: 429 | K15: =SUM(L15-1) -> 458 | L15: 459 | M15: 600
A16: 12 | B16: 100 | C16: 330 | D16: 331 | E16: 361 | F16: 362 | G16: =SUM(H16-1) -> 401 | H16: 402 | I16: =SUM(J16-1) -> 433 | J16: 434 | K16: =SUM(L16-1) -> 465 | L16: 466 | M16: 600

Sheet --Data List for Dropdowns-- (hidden)
A1: This is background data. Do not adjust.
A3: Grades | B3: 4 | C3: 5 | D3: 6 | E3: 7 | F3: 8 | G3: 9 | H3: 10 | K3: Subject | M3: LookupSubjects | N3: LookupGrades | O3: LookupEndPoint | S3: Trajectory End Point | T3: Trajectory End Point for Grade 10 | U3: Trajectory Based on | Y3: Data Source | AC3: Scores
A4: Select | B4: Select a target end point | C4: Select a target end point | D4: Select a target end point | E4: Select a target end point | F4: Select a target end point | G4: Select a target end point | H4: Select a target end point | K4: ELA/Literacy | M4: Select a subject | N4: Select a grade | O4: Select a trajectory target | S4: Select a trajectory target | T4: This school year | U4: Select a trajectory calculation | Y4: Online Reporting System (ORS) | AC4: 100
A5: =IF(OR(#REF! > 0, 'Enter Student Data'!#REF!>0,#REF! > 0,#REF! > 0, 'Enter Student Data'!#REF!>0,#REF! > 0), " ", 4) ->  | B5: This school year | C5: This school year | D5: This school year | E5: This school year | F5: This school year | G5: 10th grade | H5: This school year | K5: Mathematics | M5: ELA/Literacy | N5: 1 | O5: Reaching proficiency by the end of this year | S5: Three years | U5: Student's average annual growth | Y5: Other | AC5: 101
A6: =IF(OR(#REF! > 0, 'Enter Student Data'!#REF!>0,#REF! > 0), " ", 5) ->  | B6: Three years from now | C6: Three years from now | D6: 8th grade | E6: 8th grade | M6: Mathematics | N6: 2 | O6: Reaching proficiency three years from now | S6: 10th grade | U6: Student's growth last year | AC6: 102
A7: 6 | B7: 8th grade | C7: 8th grade | N7: 3 | O7: Reaching proficiency by the end of 8th grade | AC7: 103
A8: 7 | N8: 4 | O8: Reaching proficiency by the end of 10th grade | AC8: 104
A9: 8 | N9: 5 | AC9: 105
N10: 6 | AC10: 106
N11: 7 | AC11: 107
N12: 8 | AC12: 108
N13: 9 | AC13: 109
N14: 10 | AC14: 110
N15: 11 | AC15: 111
N16: 12 | AC16: 112
AC17: 113
AC18: 114
AC19: 115
AC20: 116
AC21: 117
AC22: 118
AC23: 119
AC24: 120
AC25: 121
AC26: 122
AC27: 123
AC28: 124
AC29: 125
AC30: 126
AC31: 127
AC32: 128
AC33: 129
AC34: 130
AC35: 131
AC36: 132
AC37: 133
AC38: 134
AC39: 135
AC40: 136
AC41: 137
AC42: 138
AC43: 139
AC44: 140
AC45: 141
AC46: 142
AC47: 143
AC48: 144
AC49: 145
AC50: 146
AC51: 147
AC52: 148
AC53: 149
AC54: 150
AC55: 151
AC56: 152
AC57: 153
AC58: 154
AC59: 155
AC60: 156
AC61: 157
AC62: 158
AC63: 159
AC64: 160
AC65: 161
AC66: 162
AC67: 163
AC68: 164
AC69: 165
AC70: 166
AC71: 167
AC72: 168
AC73: 169
AC74: 170
AC75: 171
AC76: 172
AC77: 173
AC78: 174
AC79: 175
AC80: 176
AC81: 177
AC82: 178
AC83: 179
AC84: 180
AC85: 181
AC86: 182
AC87: 183
AC88: 184
AC89: 185
AC90: 186
AC91: 187
AC92: 188
AC93: 189
AC94: 190
AC95: 191
AC96: 192
AC97: 193
AC98: 194
AC99: 195
AC100: 196
AC101: 197
AC102: 198
AC103: 199
AC104: 200
AC105: 201
AC106: 202
AC107: 203
AC108: 204
AC109: 205
AC110: 206
AC111: 207
AC112: 208
AC113: 209
AC114: 210
AC115: 211
AC116: 212
AC117: 213
AC118: 214
AC119: 215
AC120: 216
AC121: 217
AC122: 218
AC123: 219
AC124: 220
AC125: 221
AC126: 222
AC127: 223
AC128: 224
AC129: 225
AC130: 226
AC131: 227
AC132: 228
AC133: 229
AC134: 230
AC135: 231
AC136: 232
AC137: 233
AC138: 234
AC139: 235
AC140: 236
AC141: 237
AC142: 238
AC143: 239
AC144: 240
AC145: 241
AC146: 242
AC147: 243
AC148: 244
AC149: 245
AC150: 246
AC151: 247
AC152: 248
AC153: 249
AC154: 250
AC155: 251
AC156: 252
AC157: 253
AC158: 254
AC159: 255
AC160: 256
AC161: 257
AC162: 258
AC163: 259
AC164: 260
AC165: 261
AC166: 262
AC167: 263
AC168: 264
AC169: 265
AC170: 266
AC171: 267
AC172: 268
AC173: 269
AC174: 270
AC175: 271
AC176: 272
AC177: 273
AC178: 274
AC179: 275
AC180: 276
AC181: 277
AC182: 278
AC183: 279
AC184: 280
AC185: 281
AC186: 282
AC187: 283
AC188: 284
AC189: 285
AC190: 286
AC191: 287
AC192: 288
AC193: 289
AC194: 290
AC195: 291
AC196: 292
AC197: 293
AC198: 294
AC199: 295
AC200: 296
AC201: 297
... 303 more rows
